[Event "Titled Tuesday Blitz November 08 Early 2022"]
[White "Orozbaev, Eldiar"]
[Black "Bluebaum, Matthias"]
[WhiteFideId "13802240"]
[BlackFideId "24651516"]
[WhiteElo "2244"]
[BlackElo "2633"]
[Result "0-1"]
[Round "06"]
[TimeControl "180+1"]
[Date "2022.11.08"]
[WhiteClock "0:00:17"]
[BlackClock "0:00:14"]

1. e4 {[%clk 0:03:00]}  e6 {[%clk 0:02:57]} 2. d4 {[%clk 0:03:01]}  d5 {[%clk 0:02:58]} 3. Nd2 {[%clk 0:03:01]}  c5 {[%clk 0:02:58]} 4. Ngf3 {[%clk 0:03:01]}  cxd4 {[%clk 0:02:57]} 5. Nxd4 {[%clk 0:03:02]}  Nf6 {[%clk 0:02:58]} 6. Bd3 {[%clk 0:02:58]}  e5 {[%clk 0:02:34]} 7. N4f3 {[%clk 0:02:56]}  dxe4 {[%clk 0:02:35]} 8. Nxe4 {[%clk 0:02:49]}  Nxe4 {[%clk 0:02:35]} 9. Bxe4 {[%clk 0:02:50]}  Qxd1+ {[%clk 0:02:36]} 10. Kxd1 {[%clk 0:02:51]}  f6 {[%clk 0:02:23]} 11. c3 {[%clk 0:02:51]}  Nc6 {[%clk 0:02:21]} 12. Kc2 {[%clk 0:02:50]}  Be6 {[%clk 0:02:20]} 13. Re1 {[%clk 0:02:44]}  Rc8 {[%clk 0:02:19]} 14. Bd2 {[%clk 0:02:35]}  Be7 {[%clk 0:02:14]} 15. b3 {[%clk 0:02:33]}  O-O {[%clk 0:02:07]} 16. Kb2 {[%clk 0:02:30]}  Rfd8 {[%clk 0:02:03]} 17. Rad1 {[%clk 0:02:27]}  Bc5 {[%clk 0:01:41]} 18. Be3 {[%clk 0:02:20]}  Rxd1 {[%clk 0:01:41]} 19. Rxd1 {[%clk 0:02:20]}  Bxe3 {[%clk 0:01:41]} 20. fxe3 {[%clk 0:02:21]}  Kf7 {[%clk 0:01:42]} 21. Rf1 {[%clk 0:01:59]}  Kg8 {[%clk 0:01:28]} 22. Nd2 {[%clk 0:01:51]}  Rd8 {[%clk 0:01:26]} 23. Kc2 {[%clk 0:01:50]}  Rd7 {[%clk 0:01:15]} 24. a3 {[%clk 0:01:40]}  Ne7 {[%clk 0:01:14]} 25. c4 {[%clk 0:01:38]}  f5 {[%clk 0:01:14]} 26. Bd3 {[%clk 0:01:37]}  e4 {[%clk 0:01:14]} 27. Be2 {[%clk 0:01:38]}  Nc6 {[%clk 0:01:08]} 28. Nb1 {[%clk 0:01:38]}  Ne5 {[%clk 0:01:04]} 29. Nc3 {[%clk 0:01:38]}  g6 {[%clk 0:01:01]} 30. Nb5 {[%clk 0:01:35]}  a6 {[%clk 0:00:56]} 31. Nd4 {[%clk 0:01:35]}  Bf7 {[%clk 0:00:57]} 32. Rd1 {[%clk 0:01:35]}  h5 {[%clk 0:00:56]} 33. h4 {[%clk 0:01:35]}  Kf8 {[%clk 0:00:54]} 34. Kc3 {[%clk 0:01:30]}  Ke7 {[%clk 0:00:54]} 35. Rd2 {[%clk 0:01:30]}  Rc7 {[%clk 0:00:51]} 36. Kb2 {[%clk 0:01:24]}  Be8 {[%clk 0:00:41]} 37. Rc2 {[%clk 0:01:11]}  b6 {[%clk 0:00:37]} 38. Rd2 {[%clk 0:01:08]}  Bd7 {[%clk 0:00:33]} 39. Nc2 {[%clk 0:01:08]}  Be6 {[%clk 0:00:23]} 40. Nb4 {[%clk 0:01:05]}  a5 {[%clk 0:00:23]} 41. Nc2 {[%clk 0:01:05]}  a4 {[%clk 0:00:20]} 42. Nd4 {[%clk 0:00:56]}  axb3 {[%clk 0:00:21]} 43. Nxe6 {[%clk 0:00:56]}  Kxe6 {[%clk 0:00:21]} 44. Kxb3 {[%clk 0:00:57]}  Ra7 {[%clk 0:00:18]} 45. Rd5 {[%clk 0:00:54]}  Nd7 {[%clk 0:00:18]} 46. Rb5 {[%clk 0:00:49]}  Kd6 {[%clk 0:00:18]} 47. Rd5+ {[%clk 0:00:47]}  Kc6 {[%clk 0:00:18]} 48. Kb2 {[%clk 0:00:44]}  Nc5 {[%clk 0:00:19]} 49. Rd8 {[%clk 0:00:42]}  Na4+ {[%clk 0:00:17]} 50. Kc2 {[%clk 0:00:41]}  Nc5 {[%clk 0:00:18]} 51. Kb2 {[%clk 0:00:41]}  Rf7 {[%clk 0:00:14]} 52. Rg8 {[%clk 0:00:39]}  Rf6 {[%clk 0:00:14]} 53. Rd8 {[%clk 0:00:34]}  f4 {[%clk 0:00:13]} 54. exf4 {[%clk 0:00:30]}  Rxf4 {[%clk 0:00:14]} 55. Rg8 {[%clk 0:00:29]}  Rf2 {[%clk 0:00:13]} 56. Rxg6+ {[%clk 0:00:28]}  Kb7 {[%clk 0:00:13]} 57. Rg5 {[%clk 0:00:25]}  Rxe2+ {[%clk 0:00:13]} 58. Kc3 {[%clk 0:00:26]}  e3 {[%clk 0:00:13]} 59. Rxh5 {[%clk 0:00:26]}  Rxg2 {[%clk 0:00:11]} 60. Re5 {[%clk 0:00:25]}  e2 {[%clk 0:00:10]} 61. h5 {[%clk 0:00:23]}  Rh2 {[%clk 0:00:10]} 62. h6 {[%clk 0:00:22]}  Ka6 {[%clk 0:00:08]} 63. h7 {[%clk 0:00:19]}  Rxh7 {[%clk 0:00:08]} 64. Rxe2 {[%clk 0:00:19]}  Rh3+ {[%clk 0:00:09]} 65. Kb2 {[%clk 0:00:19]}  Na4+ {[%clk 0:00:09]} 66. Kc2 {[%clk 0:00:17]}  Rxa3 {[%clk 0:00:09]} 67. Re5 {[%clk 0:00:17]}  Rc3+ {[%clk 0:00:09]} 68. Kb1 {[%clk 0:00:14]}  Rxc4 {[%clk 0:00:10]} 69. Ka2 {[%clk 0:00:15]}  Nc5 {[%clk 0:00:11]} 70. Re8 {[%clk 0:00:15]}  Kb5 {[%clk 0:00:11]} 71. Kb2 {[%clk 0:00:16]}  Rb4+ {[%clk 0:00:12]} 72. Kc3 {[%clk 0:00:16]}  Rc4+ {[%clk 0:00:12]} 73. Kb2 {[%clk 0:00:17]}  Rh4 {[%clk 0:00:13]} 74. Re2 {[%clk 0:00:17]}  Rh3 {[%clk 0:00:14]} 75. Rf2 {[%clk 0:00:17]}  Nd3+ {[%clk 0:00:14]} 0-1


[Site "https://www.chess.com"]

[Event "Titled Tuesday Blitz November 08 Early 2022"]
[White "Osmonbekov, Talaibek"]
[Black "Aaditya Dhingra"]
[WhiteFideId "2017253"]
[BlackFideId "25678191"]
[WhiteElo "2135"]
[BlackElo "2054"]
[Result "1-0"]
[Round "06"]
[TimeControl "180+1"]
[Date "2022.11.09"]
[WhiteClock "0:00:06"]
[BlackClock "0:00:01"]

1. d4 {[%clk 0:03:00]}  Nf6 {[%clk 0:02:58]} 2. Bf4 {[%clk 0:03:01]}  g6 {[%clk 0:02:55]} 3. Nc3 {[%clk 0:03:01]}  d5 {[%clk 0:02:52]} 4. e3 {[%clk 0:03:02]}  Bg7 {[%clk 0:02:52]} 5. h4 {[%clk 0:03:02]}  O-O {[%clk 0:02:39]} 6. h5 {[%clk 0:03:01]}  c5 {[%clk 0:02:27]} 7. h6 {[%clk 0:02:19]}  Bh8 {[%clk 0:02:27]} 8. Nb5 {[%clk 0:02:19]}  Na6 {[%clk 0:02:25]} 9. c3 {[%clk 0:02:19]}  Bd7 {[%clk 0:02:16]} 10. a4 {[%clk 0:02:17]}  c4 {[%clk 0:01:51]} 11. b3 {[%clk 0:02:11]}  cxb3 {[%clk 0:01:45]} 12. Qxb3 {[%clk 0:02:12]}  Qa5 {[%clk 0:01:42]} 13. Bd3 {[%clk 0:01:50]}  Rfc8 {[%clk 0:01:42]} 14. Ne2 {[%clk 0:01:47]}  Ne4 {[%clk 0:00:55]} 15. O-O {[%clk 0:01:21]}  Nd2 {[%clk 0:00:55]} 16. Qxd5 {[%clk 0:01:16]}  Bc6 {[%clk 0:00:35]} 17. Qg5 {[%clk 0:00:41]}  Bf6 {[%clk 0:00:30]} 18. Qg3 {[%clk 0:00:36]}  Nxf1 {[%clk 0:00:29]} 19. Rxf1 {[%clk 0:00:31]}  Qxa4 {[%clk 0:00:24]} 20. Rb1 {[%clk 0:00:19]}  Bxb5 {[%clk 0:00:18]} 21. Bxb5 {[%clk 0:00:16]}  Qc2 {[%clk 0:00:17]} 22. Re1 {[%clk 0:00:14]}  Qd2 {[%clk 0:00:16]} 23. f3 {[%clk 0:00:14]}  Nc7 {[%clk 0:00:13]} 24. Bc4 {[%clk 0:00:12]}  Ne8 {[%clk 0:00:11]} 25. Bb3 {[%clk 0:00:11]}  Qb2 {[%clk 0:00:11]} 26. Bd5 {[%clk 0:00:08]}  a5 {[%clk 0:00:09]} 27. e4 {[%clk 0:00:05]}  a4 {[%clk 0:00:08]} 28. e5 {[%clk 0:00:05]}  Bh8 {[%clk 0:00:08]} 29. e6 {[%clk 0:00:06]}  f6 {[%clk 0:00:06]} 30. Be4 {[%clk 0:00:06]}  Kf8 {[%clk 0:00:01]} 31. Bxg6 {[%clk 0:00:06]}  hxg6 {[%clk 0:00:02]} 32. Qxg6 {[%clk 0:00:06]}  Nd6 {[%clk 0:00:02]} 33. Bxd6 {[%clk 0:00:06]}  exd6 {[%clk 0:00:01]} 34. Qf7# {[%clk 0:00:06]} 1-0


[Site "https://www.chess.com"]

[Event "Titled Tuesday Blitz November 08 Early 2022"]
[White "Ozen, Bahadir"]
[Black "Ter-Sahakyan, Samvel"]
[WhiteFideId "6337058"]
[BlackFideId "13302531"]
[WhiteElo "2503"]
[BlackElo "2584"]
[Result "1/2-1/2"]
[Round "06"]
[TimeControl "180+1"]
[Date "2022.11.08"]
[WhiteClock "0:00:05"]
[BlackClock "0:00:05"]

1. g3 {[%clk 0:03:00]}  d5 {[%clk 0:02:59]} 2. Nf3 {[%clk 0:03:01]}  g6 {[%clk 0:02:57]} 3. Bg2 {[%clk 0:03:01]}  Bg7 {[%clk 0:02:58]} 4. O-O {[%clk 0:03:01]}  e5 {[%clk 0:02:58]} 5. d3 {[%clk 0:03:02]}  Nc6 {[%clk 0:02:58]} 6. c3 {[%clk 0:02:59]}  Nf6 {[%clk 0:02:53]} 7. Nbd2 {[%clk 0:02:58]}  O-O {[%clk 0:02:51]} 8. Qc2 {[%clk 0:02:56]}  Re8 {[%clk 0:02:48]} 9. e4 {[%clk 0:02:55]}  a5 {[%clk 0:02:48]} 10. Re1 {[%clk 0:02:47]}  h6 {[%clk 0:02:49]} 11. b3 {[%clk 0:02:38]}  Be6 {[%clk 0:02:44]} 12. a3 {[%clk 0:02:34]}  Qd7 {[%clk 0:02:28]} 13. Bb2 {[%clk 0:02:34]}  b6 {[%clk 0:01:34]} 14. exd5 {[%clk 0:02:13]}  Bxd5 {[%clk 0:01:34]} 15. c4 {[%clk 0:02:13]}  Bxf3 {[%clk 0:01:34]} 16. Nxf3 {[%clk 0:02:12]}  Rad8 {[%clk 0:01:02]} 17. Rad1 {[%clk 0:02:08]}  Nh7 {[%clk 0:00:53]} 18. Bc3 {[%clk 0:02:01]}  Ng5 {[%clk 0:00:48]} 19. Nxg5 {[%clk 0:01:46]}  hxg5 {[%clk 0:00:49]} 20. Qc1 {[%clk 0:01:32]}  Bf6 {[%clk 0:00:43]} 21. b4 {[%clk 0:01:22]}  axb4 {[%clk 0:00:43]} 22. axb4 {[%clk 0:01:23]}  Nd4 {[%clk 0:00:40]} 23. Bxd4 {[%clk 0:01:19]}  Qxd4 {[%clk 0:00:40]} 24. Re4 {[%clk 0:01:00]}  Qd7 {[%clk 0:00:36]} 25. Ree1 {[%clk 0:00:52]}  Kg7 {[%clk 0:00:36]} 26. Qe3 {[%clk 0:00:50]}  Qd6 {[%clk 0:00:33]} 27. c5 {[%clk 0:00:48]}  Qd4 {[%clk 0:00:31]} 28. Qxd4 {[%clk 0:00:47]}  Rxd4 {[%clk 0:00:31]} 29. cxb6 {[%clk 0:00:47]}  cxb6 {[%clk 0:00:32]} 30. b5 {[%clk 0:00:48]}  Rc8 {[%clk 0:00:29]} 31. Bc6 {[%clk 0:00:46]}  Rcd8 {[%clk 0:00:29]} 32. Re3 {[%clk 0:00:36]}  g4 {[%clk 0:00:27]} 33. Kg2 {[%clk 0:00:36]}  Ra4 {[%clk 0:00:25]} 34. Re4 {[%clk 0:00:33]}  Rdd4 {[%clk 0:00:23]} 35. Rxd4 {[%clk 0:00:33]}  Rxd4 {[%clk 0:00:24]} 36. h3 {[%clk 0:00:29]}  gxh3+ {[%clk 0:00:23]} 37. Kxh3 {[%clk 0:00:30]}  Be7 {[%clk 0:00:23]} 38. Re1 {[%clk 0:00:27]}  Kf6 {[%clk 0:00:22]} 39. Re3 {[%clk 0:00:26]}  Bc5 {[%clk 0:00:22]} 40. Rf3+ {[%clk 0:00:25]}  Ke7 {[%clk 0:00:21]} 41. Kg2 {[%clk 0:00:26]}  f5 {[%clk 0:00:21]} 42. Re3 {[%clk 0:00:26]}  Kd6 {[%clk 0:00:21]} 43. Rf3 {[%clk 0:00:24]}  Rb4 {[%clk 0:00:18]} 44. Be8 {[%clk 0:00:19]}  f4 {[%clk 0:00:12]} 45. Bxg6 {[%clk 0:00:15]}  fxg3 {[%clk 0:00:10]} 46. fxg3 {[%clk 0:00:15]}  Rxb5 {[%clk 0:00:10]} 47. g4 {[%clk 0:00:11]}  Rb1 {[%clk 0:00:11]} 48. Be4 {[%clk 0:00:07]}  Rg1+ {[%clk 0:00:11]} 49. Kh3 {[%clk 0:00:07]}  b5 {[%clk 0:00:11]} 50. Rf6+ {[%clk 0:00:06]}  Ke7 {[%clk 0:00:11]} 51. Rc6 {[%clk 0:00:06]}  Bd4 {[%clk 0:00:12]} 52. Rc7+ {[%clk 0:00:04]}  Kd6 {[%clk 0:00:12]} 53. Rb7 {[%clk 0:00:05]}  Kc5 {[%clk 0:00:12]} 54. Kh4 {[%clk 0:00:05]}  Be3 {[%clk 0:00:12]} 55. Kh5 {[%clk 0:00:05]}  b4 {[%clk 0:00:10]} 56. Bf5 {[%clk 0:00:05]}  Bd2 {[%clk 0:00:08]} 57. Kg6 {[%clk 0:00:05]}  Kd4 {[%clk 0:00:08]} 58. Kf7 {[%clk 0:00:05]}  Kc3 {[%clk 0:00:07]} 59. Be6 {[%clk 0:00:04]}  Rf1+ {[%clk 0:00:07]} 60. Ke7 {[%clk 0:00:05]}  Kxd3 {[%clk 0:00:06]} 61. Rc7 {[%clk 0:00:04]}  Ke3 {[%clk 0:00:05]} 62. Rb7 {[%clk 0:00:04]}  Kd4 {[%clk 0:00:05]} 63. Kd6 {[%clk 0:00:04]}  e4 {[%clk 0:00:05]} 64. Rb5 {[%clk 0:00:04]}  Bf4+ {[%clk 0:00:05]} 65. Kd7 {[%clk 0:00:03]}  Kc3 {[%clk 0:00:05]} 66. Rc5+ {[%clk 0:00:03]}  Kb2 {[%clk 0:00:06]} 67. Rc4 {[%clk 0:00:04]}  Bd2 {[%clk 0:00:05]} 68. Rxe4 {[%clk 0:00:04]}  Bc3 {[%clk 0:00:06]} 69. g5 {[%clk 0:00:04]}  Rg1 {[%clk 0:00:06]} 70. Rg4 {[%clk 0:00:04]}  Rd1+ {[%clk 0:00:06]} 71. Kc6 {[%clk 0:00:05]}  Re1 {[%clk 0:00:06]} 72. Kd7 {[%clk 0:00:05]}  Rd1+ {[%clk 0:00:06]} 73. Kc6 {[%clk 0:00:05]}  Re1 {[%clk 0:00:05]} 74. Kd7 {[%clk 0:00:05]} 1/2-1/2


[Site "https://www.chess.com"]

[Event "Titled Tuesday Blitz November 08 Early 2022"]
[White "Papasimakopoulos, Alexandros"]
[Black "Namitbir Singh Walia"]
[WhiteFideId "4244125"]
[BlackFideId "35071068"]
[WhiteElo "2365"]
[BlackElo "2239"]
[Result "0-1"]
[Round "06"]
[TimeControl "180+1"]
[Date "2022.11.09"]
[WhiteClock "0:00:09"]
[BlackClock "0:00:18"]

1. d4 {[%clk 0:02:55]}  Nf6 {[%clk 0:02:58]} 2. c4 {[%clk 0:02:54]}  e6 {[%clk 0:02:57]} 3. Nc3 {[%clk 0:02:55]}  Bb4 {[%clk 0:02:57]} 4. Qc2 {[%clk 0:02:55]}  d5 {[%clk 0:02:56]} 5. cxd5 {[%clk 0:02:55]}  Qxd5 {[%clk 0:02:55]} 6. Nf3 {[%clk 0:02:55]}  Qf5 {[%clk 0:02:54]} 7. Qxf5 {[%clk 0:02:55]}  exf5 {[%clk 0:02:55]} 8. a3 {[%clk 0:02:55]}  Be7 {[%clk 0:02:53]} 9. Bf4 {[%clk 0:02:55]}  c6 {[%clk 0:02:53]} 10. e3 {[%clk 0:02:54]}  Be6 {[%clk 0:02:53]} 11. Bd3 {[%clk 0:02:52]}  h6 {[%clk 0:02:52]} 12. Ke2 {[%clk 0:02:48]}  Nbd7 {[%clk 0:02:51]} 13. Rhc1 {[%clk 0:02:47]}  a5 {[%clk 0:02:47]} 14. h4 {[%clk 0:02:37]}  O-O {[%clk 0:02:43]} 15. Ne5 {[%clk 0:02:37]}  Nxe5 {[%clk 0:02:41]} 16. Bxe5 {[%clk 0:02:37]}  Nd7 {[%clk 0:02:38]} 17. Bg3 {[%clk 0:02:37]}  Nb6 {[%clk 0:02:36]} 18. h5 {[%clk 0:02:36]}  a4 {[%clk 0:02:28]} 19. f3 {[%clk 0:02:26]}  Rfe8 {[%clk 0:02:23]} 20. Kf2 {[%clk 0:02:20]}  Nc4 {[%clk 0:02:17]} 21. Rc2 {[%clk 0:02:17]}  Bg5 {[%clk 0:02:07]} 22. f4 {[%clk 0:02:08]}  Bf6 {[%clk 0:02:04]} 23. Re1 {[%clk 0:02:02]}  Na5 {[%clk 0:01:55]} 24. Rcc1 {[%clk 0:01:52]}  Nb3 {[%clk 0:01:52]} 25. Rc2 {[%clk 0:01:49]}  Red8 {[%clk 0:01:47]} 26. Kf1 {[%clk 0:01:47]}  Be7 {[%clk 0:01:38]} 27. Bf2 {[%clk 0:01:42]}  Bf6 {[%clk 0:01:35]} 28. g3 {[%clk 0:01:38]}  Na5 {[%clk 0:01:33]} 29. Kg2 {[%clk 0:01:34]}  Bb3 {[%clk 0:01:29]} 30. Rce2 {[%clk 0:01:28]}  Bd5+ {[%clk 0:01:23]} 31. Nxd5 {[%clk 0:01:25]}  Rxd5 {[%clk 0:01:22]} 32. Rc2 {[%clk 0:01:25]}  Nb3 {[%clk 0:01:20]} 33. Bc4 {[%clk 0:01:20]}  Rda5 {[%clk 0:01:12]} 34. Rc3 {[%clk 0:01:20]}  Nd2 {[%clk 0:01:10]} 35. Bd3 {[%clk 0:01:18]}  Ne4 {[%clk 0:01:08]} 36. Rc2 {[%clk 0:01:12]}  g6 {[%clk 0:01:07]} 37. hxg6 {[%clk 0:01:12]}  fxg6 {[%clk 0:01:06]} 38. Rh1 {[%clk 0:01:03]}  Nxf2 {[%clk 0:01:03]} 39. Kxf2 {[%clk 0:01:03]}  Kg7 {[%clk 0:01:04]} 40. Kf3 {[%clk 0:00:59]}  h5 {[%clk 0:01:03]} 41. Rhh2 {[%clk 0:00:51]}  Rh8 {[%clk 0:01:00]} 42. Rc4 {[%clk 0:00:51]}  Rha8 {[%clk 0:00:53]} 43. Rb4 {[%clk 0:00:51]}  b5 {[%clk 0:00:52]} 44. e4 {[%clk 0:00:46]}  fxe4+ {[%clk 0:00:36]} 45. Bxe4 {[%clk 0:00:46]}  Be7 {[%clk 0:00:35]} 46. Bxc6 {[%clk 0:00:46]}  Rb8 {[%clk 0:00:33]} 47. d5 {[%clk 0:00:35]}  Bxb4 {[%clk 0:00:32]} 48. axb4 {[%clk 0:00:36]}  Ra6 {[%clk 0:00:32]} 49. Rc2 {[%clk 0:00:36]}  a3 {[%clk 0:00:32]} 50. bxa3 {[%clk 0:00:36]}  Rxa3+ {[%clk 0:00:33]} 51. Kg2 {[%clk 0:00:36]}  Rd3 {[%clk 0:00:27]} 52. Rc5 {[%clk 0:00:33]}  Rd4 {[%clk 0:00:27]} 53. Bxb5 {[%clk 0:00:33]}  Rxb4 {[%clk 0:00:26]} 54. Rc7+ {[%clk 0:00:25]}  Kh6 {[%clk 0:00:25]} 55. Bc6 {[%clk 0:00:19]}  Rb2+ {[%clk 0:00:25]} 56. Kh3 {[%clk 0:00:18]}  Rd2 {[%clk 0:00:24]} 57. Re7 {[%clk 0:00:15]}  Rbb2 {[%clk 0:00:22]} 58. g4 {[%clk 0:00:12]}  Rb3+ {[%clk 0:00:18]} 59. Kh4 {[%clk 0:00:09]}  Rh2# {[%clk 0:00:18]} 0-1


[Site "https://www.chess.com"]

[Event "Titled Tuesday Blitz November 08 Early 2022"]
[White "Peyrer, Konstantin"]
[Black "Kouskoutis, Georgios-Alexandros"]
[WhiteFideId "1640879"]
[BlackFideId "4234049"]
[WhiteElo "2415"]
[BlackElo "2187"]
[Result "1-0"]
[Round "06"]
[TimeControl "180+1"]
[Date "2022.11.09"]
[WhiteClock "0:01:07"]
[BlackClock "0:00:01"]

1. e4 {[%clk 0:03:00]}  c5 {[%clk 0:02:54]} 2. Nf3 {[%clk 0:03:00]}  e6 {[%clk 0:02:53]} 3. d4 {[%clk 0:03:00]}  cxd4 {[%clk 0:02:53]} 4. Nxd4 {[%clk 0:03:01]}  Nc6 {[%clk 0:02:53]} 5. Nc3 {[%clk 0:03:01]}  Qc7 {[%clk 0:02:49]} 6. Be3 {[%clk 0:03:00]}  a6 {[%clk 0:02:45]} 7. Qf3 {[%clk 0:02:57]}  Nf6 {[%clk 0:02:23]} 8. O-O-O {[%clk 0:02:50]}  Nxd4 {[%clk 0:02:19]} 9. Bxd4 {[%clk 0:02:47]}  e5 {[%clk 0:02:18]} 10. Be3 {[%clk 0:02:46]}  Bb4 {[%clk 0:02:10]} 11. Bd2 {[%clk 0:02:33]}  O-O {[%clk 0:01:33]} 12. a3 {[%clk 0:02:27]}  Bxc3 {[%clk 0:01:13]} 13. Bxc3 {[%clk 0:02:28]}  d5 {[%clk 0:01:13]} 14. Rxd5 {[%clk 0:02:26]}  Nxd5 {[%clk 0:01:10]} 15. exd5 {[%clk 0:02:27]}  Bd7 {[%clk 0:00:48]} 16. Bd3 {[%clk 0:02:04]}  a5 {[%clk 0:00:42]} 17. Re1 {[%clk 0:01:57]}  Rfe8 {[%clk 0:00:28]} 18. Qg3 {[%clk 0:01:27]}  f6 {[%clk 0:00:21]} 19. Qh4 {[%clk 0:01:27]}  f5 {[%clk 0:00:17]} 20. f3 {[%clk 0:01:23]}  b5 {[%clk 0:00:16]} 21. Qg3 {[%clk 0:01:19]}  f4 {[%clk 0:00:09]} 22. Qg5 {[%clk 0:01:18]}  Qd8 {[%clk 0:00:02]} 23. Qh5 {[%clk 0:01:15]}  g6 {[%clk 0:00:01]} 24. Bxg6 {[%clk 0:01:05]}  hxg6 {[%clk 0:00:02]} 25. Qxg6+ {[%clk 0:01:06]}  Kf8 {[%clk 0:00:01]} 26. Rxe5 {[%clk 0:01:07]}  Rxe5 {[%clk 0:00:01]} 27. Bxe5 {[%clk 0:01:07]}  Qe7 {[%clk 0:00:01]} 28. Bd6 {[%clk 0:01:06]}  Qxd6 {[%clk 0:00:01]} 29. Qxd6+ {[%clk 0:01:07]}  Ke8 {[%clk 0:00:01]} 30. Qxf4 {[%clk 0:01:07]} 1-0


[Site "https://www.chess.com"]

[Event "Titled Tuesday Blitz November 08 Early 2022"]
[White "Postny, Evgeny"]
[Black "Shuvalov, Evgenij"]
[WhiteFideId "2804344"]
[BlackFideId "4187237"]
[WhiteElo "2795"]
[BlackElo "2548"]
[Result "0-1"]
[Round "06"]
[TimeControl "180+1"]
[Date "2022.11.09"]
[WhiteClock "0:00:33"]
[BlackClock "0:00:16"]

1. d4 {[%clk 0:03:00]}  Nf6 {[%clk 0:02:49]} 2. Nf3 {[%clk 0:03:01]}  g6 {[%clk 0:02:47]} 3. Bg5 {[%clk 0:03:00]}  Bg7 {[%clk 0:02:46]} 4. Nbd2 {[%clk 0:03:01]}  d5 {[%clk 0:02:46]} 5. e3 {[%clk 0:03:01]}  O-O {[%clk 0:02:45]} 6. Be2 {[%clk 0:03:01]}  Bg4 {[%clk 0:02:43]} 7. O-O {[%clk 0:03:00]}  Nbd7 {[%clk 0:02:43]} 8. c4 {[%clk 0:03:00]}  e6 {[%clk 0:02:39]} 9. Qb3 {[%clk 0:02:59]}  c5 {[%clk 0:02:21]} 10. cxd5 {[%clk 0:02:53]}  exd5 {[%clk 0:02:16]} 11. h3 {[%clk 0:02:39]}  Bxf3 {[%clk 0:02:05]} 12. Nxf3 {[%clk 0:02:38]}  c4 {[%clk 0:01:57]} 13. Qxb7 {[%clk 0:02:30]}  Rb8 {[%clk 0:01:57]} 14. Qxa7 {[%clk 0:02:25]}  Rxb2 {[%clk 0:01:43]} 15. Bd1 {[%clk 0:02:11]}  Qa8 {[%clk 0:01:25]} 16. Qxa8 {[%clk 0:02:10]}  Rxa8 {[%clk 0:01:26]} 17. a4 {[%clk 0:02:10]}  Ne4 {[%clk 0:01:26]} 18. Be7 {[%clk 0:02:05]}  Bf8 {[%clk 0:01:23]} 19. Bxf8 {[%clk 0:02:01]}  Kxf8 {[%clk 0:01:24]} 20. a5 {[%clk 0:01:51]}  Nb8 {[%clk 0:01:11]} 21. Re1 {[%clk 0:01:23]}  Rb5 {[%clk 0:00:42]} 22. Bc2 {[%clk 0:01:12]}  f5 {[%clk 0:00:28]} 23. Ne5 {[%clk 0:01:09]}  Rbxa5 {[%clk 0:00:23]} 24. Rxa5 {[%clk 0:01:04]}  Rxa5 {[%clk 0:00:24]} 25. Rb1 {[%clk 0:01:05]}  Na6 {[%clk 0:00:23]} 26. f3 {[%clk 0:00:57]}  Nc3 {[%clk 0:00:17]} 27. e4 {[%clk 0:00:33]}  Nxb1 {[%clk 0:00:16]} 0-1


[Site "https://www.chess.com"]

[Event "Titled Tuesday Blitz November 08 Early 2022"]
[White "Pourkashiyan, Atousa"]
[Black "Ristic, Nebojsa B"]
[WhiteFideId "12502014"]
[BlackFideId "935468"]
[WhiteElo "2247"]
[BlackElo "2320"]
[Result "0-1"]
[Round "06"]
[TimeControl "180+1"]
[Date "2022.11.09"]
[WhiteClock "0:00:08"]
[BlackClock "0:00:28"]

1. e4 {[%clk 0:03:00]}  Nc6 {[%clk 0:02:51]} 2. Nf3 {[%clk 0:02:59]}  d6 {[%clk 0:02:52]} 3. d4 {[%clk 0:02:58]}  Nf6 {[%clk 0:02:52]} 4. Nc3 {[%clk 0:02:58]}  g6 {[%clk 0:02:52]} 5. Bc4 {[%clk 0:02:55]}  Bg7 {[%clk 0:02:52]} 6. O-O {[%clk 0:02:54]}  O-O {[%clk 0:02:52]} 7. Re1 {[%clk 0:02:53]}  Bg4 {[%clk 0:02:49]} 8. Be3 {[%clk 0:02:48]}  Nxe4 {[%clk 0:02:43]} 9. Nxe4 {[%clk 0:02:44]}  d5 {[%clk 0:02:43]} 10. Bd3 {[%clk 0:02:44]}  dxe4 {[%clk 0:02:42]} 11. Bxe4 {[%clk 0:02:45]}  Nxd4 {[%clk 0:02:24]} 12. Bxd4 {[%clk 0:02:33]}  Bxf3 {[%clk 0:02:24]} 13. Qxf3 {[%clk 0:02:25]}  Qxd4 {[%clk 0:02:24]} 14. Bxb7 {[%clk 0:02:21]}  Rab8 {[%clk 0:02:24]} 15. c3 {[%clk 0:02:20]}  Qb6 {[%clk 0:02:23]} 16. Bd5 {[%clk 0:02:19]}  Qxb2 {[%clk 0:02:22]} 17. h4 {[%clk 0:02:11]}  Qxc3 {[%clk 0:02:17]} 18. Rac1 {[%clk 0:02:03]}  Qxf3 {[%clk 0:02:15]} 19. Bxf3 {[%clk 0:02:02]}  Bf6 {[%clk 0:02:10]} 20. Rxc7 {[%clk 0:01:57]}  a5 {[%clk 0:02:06]} 21. h5 {[%clk 0:01:56]}  Rb2 {[%clk 0:02:03]} 22. hxg6 {[%clk 0:01:53]}  hxg6 {[%clk 0:02:02]} 23. Re2 {[%clk 0:01:34]}  Rb1+ {[%clk 0:01:56]} 24. Kh2 {[%clk 0:01:34]}  Rfb8 {[%clk 0:01:54]} 25. Ra7 {[%clk 0:01:33]}  R8b5 {[%clk 0:01:48]} 26. g3 {[%clk 0:01:27]}  R1b2 {[%clk 0:01:38]} 27. Kg2 {[%clk 0:01:23]}  Rxe2 {[%clk 0:01:36]} 28. Bxe2 {[%clk 0:01:24]}  Rb2 {[%clk 0:01:36]} 29. Kf3 {[%clk 0:01:23]}  Rxa2 {[%clk 0:01:34]} 30. Bb5 {[%clk 0:01:17]}  Rxf2+ {[%clk 0:01:31]} 31. Ke4 {[%clk 0:01:01]}  Rf5 {[%clk 0:01:20]} 32. Bd7 {[%clk 0:00:57]}  Re5+ {[%clk 0:01:19]} 33. Kf4 {[%clk 0:00:55]}  Kg7 {[%clk 0:01:16]} 34. g4 {[%clk 0:00:54]}  Rd5 {[%clk 0:01:13]} 35. Bc6 {[%clk 0:00:50]}  Rc5 {[%clk 0:01:05]} 36. Be8 {[%clk 0:00:48]}  Be5+ {[%clk 0:01:03]} 37. Ke4 {[%clk 0:00:47]}  Bd6 {[%clk 0:01:04]} 38. Ra8 {[%clk 0:00:42]}  Rc4+ {[%clk 0:00:54]} 39. Kf3 {[%clk 0:00:41]}  Rf4+ {[%clk 0:00:54]} 40. Kg3 {[%clk 0:00:34]}  a4 {[%clk 0:00:54]} 41. Kh3 {[%clk 0:00:23]}  Rf3+ {[%clk 0:00:49]} 42. Kh4 {[%clk 0:00:18]}  f6 {[%clk 0:00:42]} 43. g5 {[%clk 0:00:18]}  f5 {[%clk 0:00:35]} 44. Rxa4 {[%clk 0:00:14]}  Bc5 {[%clk 0:00:33]} 45. Ra2 {[%clk 0:00:10]}  Bf2+ {[%clk 0:00:29]} 46. Rxf2 {[%clk 0:00:10]}  Rxf2 {[%clk 0:00:29]} 47. Kg3 {[%clk 0:00:10]}  Rf1 {[%clk 0:00:28]} 48. Bb5 {[%clk 0:00:08]}  Rg1+ {[%clk 0:00:28]} 49. Kf4 {[%clk 0:00:08]}  Rg4+ {[%clk 0:00:28]} 50. Ke5 {[%clk 0:00:08]}  Rxg5 {[%clk 0:00:28]} 51. Ke6 {[%clk 0:00:08]}  Kf8 {[%clk 0:00:28]} 0-1


[Site "https://www.chess.com"]